[Event "Late-Titled-Tuesday-Blitz-April-02-2024"]
[Site "Chess.com"]
[Date "2024.04.02"]
[Round "8"]
[White "rikchessmx"]
[Black "misterlamine"]
[Result "1-0"]
[WhiteElo "2252"]
[BlackElo "2430"]
[TimeControl "180+1"]
[EndTime "15:26:05 PDT"]
[Termination "rikchessmx won on time"]

1. e4 {[%clk 0:03:00.9]} 1... c5 {[%clk 0:02:59.6]} 2. Nf3 {[%clk 0:03:00.2]}
2... d6 {[%clk 0:03:00.1]} 3. d4 {[%clk 0:03:01]} 3... cxd4 {[%clk 0:03:00.7]}
4. Nxd4 {[%clk 0:03:01.6]} 4... Nf6 {[%clk 0:03:00.9]} 5. Nc3 {[%clk 0:03:02.2]}
5... a6 {[%clk 0:03:00.8]} 6. f4 {[%clk 0:03:02.8]} 6... e6 {[%clk 0:03:00.3]}
7. Qf3 {[%clk 0:03:02]} 7... Be7 {[%clk 0:03:00.5]} 8. Be3 {[%clk 0:03:02.6]}
8... Nc6 {[%clk 0:02:57.5]} 9. Nde2 {[%clk 0:02:59.2]} 9... Nb4 {[%clk
0:02:51.4]} 10. O-O-O {[%clk 0:02:58.7]} 10... Qa5 {[%clk 0:02:51.7]} 11. a3
{[%clk 0:02:57.7]} 11... Nc6 {[%clk 0:02:51.8]} 12. g4 {[%clk 0:02:57]} 12...
Bd7 {[%clk 0:02:38.8]} 13. g5 {[%clk 0:02:56.4]} 13... Ng8 {[%clk 0:02:39]} 14.
Nd4 {[%clk 0:02:53.2]} 14... Nxd4 {[%clk 0:02:34.9]} 15. Rxd4 {[%clk 0:02:52.7]}
15... e5 {[%clk 0:02:34.4]} 16. Rb4 {[%clk 0:02:44.1]} 16... b5 {[%clk
0:02:24.5]} 17. Nd5 {[%clk 0:02:39.4]} 17... Rc8 {[%clk 0:02:18.6]} 18. Bb6
{[%clk 0:02:37.2]} 18... Qxb4 {[%clk 0:02:11.6]} 19. axb4 {[%clk 0:02:36.1]}
19... exf4 {[%clk 0:02:05.1]} 20. Qxf4 {[%clk 0:02:27.4]} 20... h6 {[%clk
0:02:05.1]} 21. Nxe7 {[%clk 0:02:25.7]} 21... Nxe7 {[%clk 0:02:04.4]} 22. gxh6
{[%clk 0:02:22.6]} 22... Rxh6 {[%clk 0:02:03.9]} 23. Rg1 {[%clk 0:02:22.1]}
23... Rf6 {[%clk 0:01:58.9]} 24. Qe3 {[%clk 0:02:01.6]} 24... g6 {[%clk
0:01:53.3]} 25. Bd3 {[%clk 0:01:58.4]} 25... Re6 {[%clk 0:01:49.4]} 26. Qg5
{[%clk 0:01:44.8]} 26... d5 {[%clk 0:01:44.1]} 27. Bc5 {[%clk 0:01:43.6]} 27...
dxe4 {[%clk 0:01:43.9]} 28. Be2 {[%clk 0:01:42.3]} 28... f5 {[%clk 0:01:13.1]}
29. h4 {[%clk 0:01:40.3]} 29... a5 {[%clk 0:01:09]} 30. h5 {[%clk 0:01:38.8]}
30... axb4 {[%clk 0:01:09.1]} 31. Bxb4 {[%clk 0:01:38.2]} 31... Rec6 {[%clk
0:01:06.5]} 32. Bd1 {[%clk 0:01:30.5]} 32... Nd5 {[%clk 0:00:50.1]} 33. Bd2
{[%clk 0:01:18.4]} 33... b4 {[%clk 0:00:47]} 34. hxg6 {[%clk 0:01:16.8]} 34...
Ra8 {[%clk 0:00:46.7]} 35. c3 {[%clk 0:01:04.8]} 35... Ra1+ {[%clk 0:00:13.8]}
36. Kc2 {[%clk 0:01:03.9]} 36... Rb6 {[%clk 0:00:10.3]} 37. cxb4 {[%clk
0:01:02.2]} 37... Rc6+ {[%clk 0:00:06.2]} 38. Bc3 {[%clk 0:00:59.4]} 38... e3
{[%clk 0:00:01.9]} 39. Be2 {[%clk 0:00:44.3]} 1-0

[Event "Late-Titled-Tuesday-Blitz-April-02-2024"]
[Site "Chess.com"]
[Date "2024.04.02"]
[Round "8"]
[White "vladislavkovalev"]
[Black "IMRosen"]
[Result "1-0"]
[WhiteElo "2883"]
[BlackElo "2681"]
[TimeControl "180+1"]
[EndTime "15:26:09 PDT"]
[Termination "vladislavkovalev won on time"]

1. e4 {[%clk 0:03:00.9]} 1... c5 {[%clk 0:02:59.9]} 2. Nf3 {[%clk 0:03:01.6]}
2... e6 {[%clk 0:03:00.2]} 3. c3 {[%clk 0:03:01.6]} 3... d5 {[%clk 0:03:00]} 4.
exd5 {[%clk 0:03:02.5]} 4... Qxd5 {[%clk 0:03:00.5]} 5. d4 {[%clk 0:03:01.1]}
5... Nf6 {[%clk 0:03:01]} 6. Na3 {[%clk 0:03:00.4]} 6... Nc6 {[%clk 0:03:01.1]}
7. Nb5 {[%clk 0:02:57.8]} 7... Qd8 {[%clk 0:03:01.3]} 8. dxc5 {[%clk 0:02:56.3]}
8... Bxc5 {[%clk 0:03:02.2]} 9. Qxd8+ {[%clk 0:02:55.8]} 9... Kxd8 {[%clk
0:03:03.1]} 10. b4 {[%clk 0:02:46.6]} 10... Be7 {[%clk 0:02:53.8]} 11. Bf4
{[%clk 0:02:30.1]} 11... a6 {[%clk 0:02:29.1]} 12. O-O-O+ {[%clk 0:02:25.1]}
12... Bd7 {[%clk 0:02:03.9]} 13. Ng5 {[%clk 0:02:25.3]} 13... axb5 {[%clk
0:01:34.6]} 14. Nxf7+ {[%clk 0:02:25.4]} 14... Ke8 {[%clk 0:01:35.4]} 15. Nxh8
{[%clk 0:02:26.2]} 15... Nd5 {[%clk 0:01:36.1]} 16. Bd2 {[%clk 0:02:13.8]} 16...
Bf6 {[%clk 0:01:29.4]} 17. Bxb5 {[%clk 0:02:00.1]} 17... Ke7 {[%clk 0:01:25.5]}
18. c4 {[%clk 0:01:46.2]} 18... Nc7 {[%clk 0:00:46.8]} 19. Bxc6 {[%clk
0:01:44.9]} 19... Bxc6 {[%clk 0:00:40.2]} 20. b5 {[%clk 0:01:43.2]} 20... Bxg2
{[%clk 0:00:16.4]} 21. Bb4+ {[%clk 0:01:42.8]} 21... Ke8 {[%clk 0:00:17.1]} 22.
Rhg1 {[%clk 0:01:31.1]} 22... Be4 {[%clk 0:00:17.4]} 23. a3 {[%clk 0:01:28]}
23... g6 {[%clk 0:00:16.7]} 24. Nf7 {[%clk 0:01:13.8]} 24... Nxb5 {[%clk
0:00:08.7]} 25. Nd6+ {[%clk 0:01:00.4]} 25... Nxd6 {[%clk 0:00:07.2]} 26. Rxd6
{[%clk 0:01:01.3]} 26... Bf5 {[%clk 0:00:04.1]} 27. Rgd1 {[%clk 0:00:59.1]}
27... h5 {[%clk 0:00:01.5]} 28. Rd7 {[%clk 0:00:57.1]} 28... Bg4 {[%clk
0:00:02.1]} 29. Rxb7 {[%clk 0:00:43.8]} 29... Bxd1 {[%clk 0:00:02]} 30. Kxd1
{[%clk 0:00:44.7]} 30... Rd8+ {[%clk 0:00:01.8]} 31. Kc2 {[%clk 0:00:30.1]}
31... Rd7 {[%clk 0:00:02.3]} 32. Rxd7 {[%clk 0:00:28]} 32... Kxd7 {[%clk
0:00:03.2]} 33. h3 {[%clk 0:00:28.5]} 33... g5 {[%clk 0:00:03.6]} 34. f3 {[%clk
0:00:29]} 34... Bd8 {[%clk 0:00:01.5]} 35. Kd3 {[%clk 0:00:29.2]} 1-0

[Event "Late-Titled-Tuesday-Blitz-April-02-2024"]
[Site "Chess.com"]
[Date "2024.04.02"]
[Round "8"]
[White "Ar4uha"]
[Black "Laico"]
[Result "1-0"]
[WhiteElo "2580"]
[BlackElo "2395"]
[TimeControl "180+1"]
[EndTime "15:26:09 PDT"]
[Termination "Ar4uha won on time"]

1. e4 {[%clk 0:02:58]} 1... e6 {[%clk 0:02:59.1]} 2. d4 {[%clk 0:02:52]} 2... d5
{[%clk 0:02:56.2]} 3. Nc3 {[%clk 0:02:52.1]} 3... Nf6 {[%clk 0:02:56.6]} 4. e5
{[%clk 0:02:51.8]} 4... Nfd7 {[%clk 0:02:57.1]} 5. f4 {[%clk 0:02:52.7]} 5... c5
{[%clk 0:02:57.5]} 6. Nf3 {[%clk 0:02:53.6]} 6... Nc6 {[%clk 0:02:58]} 7. Be3
{[%clk 0:02:53.9]} 7... cxd4 {[%clk 0:02:58.7]} 8. Nxd4 {[%clk 0:02:54.1]} 8...
Bc5 {[%clk 0:02:59.5]} 9. Qd2 {[%clk 0:02:54.6]} 9... O-O {[%clk 0:02:59.2]} 10.
Be2 {[%clk 0:02:52.8]} 10... a6 {[%clk 0:02:55.2]} 11. O-O-O {[%clk 0:02:46.9]}
11... Nxd4 {[%clk 0:02:52.4]} 12. Bxd4 {[%clk 0:02:47.1]} 12... b5 {[%clk
0:02:52.6]} 13. Bxc5 {[%clk 0:02:46.4]} 13... Nxc5 {[%clk 0:02:52.4]} 14. Qd4
{[%clk 0:02:47.3]} 14... Qc7 {[%clk 0:02:44]} 15. h4 {[%clk 0:02:41.6]} 15...
Rb8 {[%clk 0:02:40.3]} 16. a3 {[%clk 0:02:15.1]} 16... Bd7 {[%clk 0:01:45.9]}
17. f5 {[%clk 0:02:10.3]} 17... exf5 {[%clk 0:01:36.9]} 18. Nxd5 {[%clk
0:02:10]} 18... Nb3+ {[%clk 0:01:36.4]} 19. Kb1 {[%clk 0:02:10.2]} 19... Nxd4
{[%clk 0:01:36.6]} 20. Nxc7 {[%clk 0:02:10.8]} 20... Nxe2 {[%clk 0:01:26.4]} 21.
Rxd7 {[%clk 0:02:10.7]} 21... Rb7 {[%clk 0:01:09.8]} 22. Rhd1 {[%clk 0:02:03]}
22... Nf4 {[%clk 0:00:54.1]} 23. g3 {[%clk 0:01:59]} 23... Ne2 {[%clk
0:00:53.9]} 24. e6 {[%clk 0:01:58.2]} 24... fxe6 {[%clk 0:00:24]} 25. Nxe6
{[%clk 0:01:53.7]} 25... Rfb8 {[%clk 0:00:17.2]} 26. Nxg7 {[%clk 0:01:08.2]}
26... Nxg3 {[%clk 0:00:11.9]} 27. Ne6 {[%clk 0:01:08.2]} 27... Rxd7 {[%clk
0:00:11.7]} 28. Rxd7 {[%clk 0:01:07.9]} 28... Re8 {[%clk 0:00:11.9]} 29. Nf4
{[%clk 0:00:57.9]} 29... Re4 {[%clk 0:00:11.6]} 30. Nd5 {[%clk 0:00:58.4]} 30...
Re1+ {[%clk 0:00:07.9]} 31. Ka2 {[%clk 0:00:58.9]} 31... Ne2 {[%clk 0:00:04.7]}
32. Nf6+ {[%clk 0:00:56.8]} 32... Kf8 {[%clk 0:00:05]} 33. Nxh7+ {[%clk
0:00:57.3]} 33... Kg8 {[%clk 0:00:04.8]} 34. Nf6+ {[%clk 0:00:57.6]} 34... Kf8
{[%clk 0:00:05.4]} 35. b4 {[%clk 0:00:56]} 35... Nc3+ {[%clk 0:00:03.4]} 36. Kb2
{[%clk 0:00:54.7]} 36... Nd1+ {[%clk 0:00:03.4]} 37. Kb3 {[%clk 0:00:55.2]}
37... Ne3 {[%clk 0:00:03.3]} 38. h5 {[%clk 0:00:51.1]} 38... Nc4 {[%clk
0:00:03.2]} 39. h6 {[%clk 0:00:47.9]} 39... Re3+ {[%clk 0:00:02]} 40. Rd3 {[%clk
0:00:42]} 1-0

[Event "Late-Titled-Tuesday-Blitz-April-02-2024"]
[Site "Chess.com"]
[Date "2024.04.02"]
[Round "8"]
[White "Fengwi"]
[Black "ansko1999"]
[Result "0-1"]
[WhiteElo "2470"]
[BlackElo "2630"]
[TimeControl "180+1"]
[EndTime "15:26:11 PDT"]
[Termination "ansko1999 won by resignation"]

1. Nf3 {[%clk 0:03:00.9]} 1... Nf6 {[%clk 0:02:57.5]} 2. b3 {[%clk 0:03:00.8]}
2... g6 {[%clk 0:02:56.1]} 3. Bb2 {[%clk 0:03:01.2]} 3... Bg7 {[%clk 0:02:56.8]}
4. g3 {[%clk 0:03:01.3]} 4... b5 {[%clk 0:02:55.3]} 5. Bg2 {[%clk 0:03:01.4]}
5... Bb7 {[%clk 0:02:55.9]} 6. O-O {[%clk 0:03:01.7]} 6... O-O {[%clk
0:02:56.3]} 7. a4 {[%clk 0:02:50.5]} 7... b4 {[%clk 0:02:55]} 8. d3 {[%clk
0:02:49.7]} 8... a5 {[%clk 0:02:49.6]} 9. e4 {[%clk 0:02:48.2]} 9... d6 {[%clk
0:02:48.9]} 10. Nbd2 {[%clk 0:02:47.7]} 10... c5 {[%clk 0:02:49.3]} 11. Nc4
{[%clk 0:02:01.9]} 11... d5 {[%clk 0:02:43.4]} 12. exd5 {[%clk 0:02:01.3]} 12...
Bxd5 {[%clk 0:02:42.9]} 13. Re1 {[%clk 0:01:58.3]} 13... Nc6 {[%clk 0:02:42.7]}
14. Ne3 {[%clk 0:01:57.8]} 14... Rc8 {[%clk 0:02:33.2]} 15. Nxd5 {[%clk
0:01:56.6]} 15... Nxd5 {[%clk 0:02:34.1]} 16. Bxg7 {[%clk 0:01:54.8]} 16... Kxg7
{[%clk 0:02:34.5]} 17. Ne5 {[%clk 0:01:51.3]} 17... Nxe5 {[%clk 0:02:30.7]} 18.
Rxe5 {[%clk 0:01:50.7]} 18... Nc3 {[%clk 0:02:29.8]} 19. Qd2 {[%clk 0:01:48.1]}
19... e6 {[%clk 0:02:06.7]} 20. Qe3 {[%clk 0:01:25.4]} 20... Qd6 {[%clk
0:01:43.4]} 21. Re1 {[%clk 0:01:21.3]} 21... Rfd8 {[%clk 0:01:43.8]} 22. h4
{[%clk 0:01:18.8]} 22... h5 {[%clk 0:01:42.9]} 23. g4 {[%clk 0:00:53.1]} 23...
Qd4 {[%clk 0:01:38.6]} 24. Qxd4 {[%clk 0:00:42.4]} 24... Rxd4 {[%clk 0:01:39.5]}
25. gxh5 {[%clk 0:00:40.1]} 25... Rxh4 {[%clk 0:01:40.4]} 26. hxg6 {[%clk
0:00:39.9]} 26... Kxg6 {[%clk 0:01:39.6]} 27. R1e3 {[%clk 0:00:30.8]} 27... Kf6
{[%clk 0:01:32.5]} 28. Re1 {[%clk 0:00:20.3]} 28... Rg8 {[%clk 0:01:26.7]} 29.
R5e3 {[%clk 0:00:18.7]} 29... Rhg4 {[%clk 0:01:23.2]} 30. Rg3 {[%clk 0:00:18.8]}
30... Rxg3 {[%clk 0:01:23.6]} 31. fxg3 {[%clk 0:00:19.7]} 31... Rxg3 {[%clk
0:01:24]} 32. Kf2 {[%clk 0:00:20.4]} 32... Rg5 {[%clk 0:01:22.5]} 33. Rh1 {[%clk
0:00:18.6]} 33... Rf5+ {[%clk 0:01:21.8]} 34. Bf3 {[%clk 0:00:17.9]} 34... Nd5
{[%clk 0:01:17.9]} 35. Rh8 {[%clk 0:00:17.5]} 35... Ke5 {[%clk 0:01:06.5]} 36.
Ra8 {[%clk 0:00:17.3]} 36... Kd4 {[%clk 0:01:05.5]} 37. Rxa5 {[%clk 0:00:17.2]}
37... Ne3 {[%clk 0:01:03.2]} 38. Ke2 {[%clk 0:00:15.2]} 38... Nxc2 {[%clk
0:01:02.8]} 39. Ra8 {[%clk 0:00:13.5]} 39... Na1 {[%clk 0:01:02.9]} 40. Rd8+
{[%clk 0:00:12.4]} 40... Kc3 {[%clk 0:01:03.4]} 41. a5 {[%clk 0:00:13.3]} 41...
Nxb3 {[%clk 0:01:00.7]} 42. a6 {[%clk 0:00:13.8]} 42... Nd4+ {[%clk 0:01:01.4]}
43. Kf2 {[%clk 0:00:04.7]} 43... Rxf3+ {[%clk 0:01:01.3]} 44. Kg2 {[%clk
0:00:05.4]} 44... Rxd3 {[%clk 0:00:53.1]} 45. a7 {[%clk 0:00:05.2]} 45... Rd2+
{[%clk 0:00:53.7]} 46. Kg3 {[%clk 0:00:05]} 46... Ra2 {[%clk 0:00:54.6]} 47.
a8=Q {[%clk 0:00:04.4]} 47... Rxa8 {[%clk 0:00:55.5]} 48. Rxa8 {[%clk
0:00:04.6]} 48... b3 {[%clk 0:00:56.4]} 49. Kf4 {[%clk 0:00:03.8]} 49... b2
{[%clk 0:00:56.4]} 50. Ke3 {[%clk 0:00:04.2]} 50... b1=Q {[%clk 0:00:56.3]} 0-1

[Event "Late-Titled-Tuesday-Blitz-April-02-2024"]
[Site "Chess.com"]
[Date "2024.04.02"]
[Round "8"]
[White "Walter_White_Poland"]
[Black "sacrifoice"]
[Result "0-1"]
[WhiteElo "2425"]
[BlackElo "2308"]
[TimeControl "180+1"]
[EndTime "15:26:12 PDT"]
[Termination "sacrifoice won on time"]

1. e4 {[%clk 0:03:00.9]} 1... c5 {[%clk 0:02:59.1]} 2. Nf3 {[%clk 0:03:00.6]}
2... d6 {[%clk 0:02:59.5]} 3. d4 {[%clk 0:03:00.7]} 3... cxd4 {[%clk 0:03:00.4]}
4. Nxd4 {[%clk 0:03:01.1]} 4... Nf6 {[%clk 0:03:01.3]} 5. Nc3 {[%clk 0:03:01.5]}
5... g6 {[%clk 0:03:01]} 6. Be3 {[%clk 0:03:01.1]} 6... Bg7 {[%clk 0:03:01.1]}
7. f3 {[%clk 0:03:01.2]} 7... O-O {[%clk 0:03:01.7]} 8. Qd2 {[%clk 0:03:01.4]}
8... Nc6 {[%clk 0:03:02.3]} 9. O-O-O {[%clk 0:03:01.6]} 9... Nxd4 {[%clk
0:03:02.2]} 10. Bxd4 {[%clk 0:03:01.1]} 10... Be6 {[%clk 0:03:03.1]} 11. Kb1
{[%clk 0:02:59.6]} 11... Qc7 {[%clk 0:03:03.1]} 12. g4 {[%clk 0:02:56.2]} 12...
Rfc8 {[%clk 0:03:03.2]} 13. h4 {[%clk 0:02:52.9]} 13... Qa5 {[%clk 0:03:02.8]}
14. a3 {[%clk 0:02:52.5]} 14... Rab8 {[%clk 0:02:57.3]} 15. h5 {[%clk
0:02:48.9]} 15... b5 {[%clk 0:02:49.8]} 16. Nd5 {[%clk 0:02:42.6]} 16... Qxd2
{[%clk 0:02:49]} 17. Rxd2 {[%clk 0:02:42.6]} 17... Nxd5 {[%clk 0:02:37.6]} 18.
exd5 {[%clk 0:02:40.2]} 18... Bxd4 {[%clk 0:02:36.7]} 19. Rxd4 {[%clk
0:02:38.6]} 19... Bd7 {[%clk 0:02:36.1]} 20. Be2 {[%clk 0:02:17]} 20... Kg7
{[%clk 0:02:30.8]} 21. h6+ {[%clk 0:02:02.1]} 21... Kf8 {[%clk 0:02:30.1]} 22.
Re1 {[%clk 0:01:52.6]} 22... Rb6 {[%clk 0:02:28.7]} 23. Bf1 {[%clk 0:01:43.3]}
23... e5 {[%clk 0:02:25.3]} 24. dxe6 {[%clk 0:01:42.2]} 24... Bxe6 {[%clk
0:02:24.9]} 25. Re3 {[%clk 0:01:26]} 25... a5 {[%clk 0:02:23.7]} 26. b3 {[%clk
0:01:14.2]} 26... Rc5 {[%clk 0:02:21.1]} 27. Kb2 {[%clk 0:01:11]} 27... Rbc6
{[%clk 0:02:16.3]} 28. c3 {[%clk 0:01:03]} 28... Rb6 {[%clk 0:02:15]} 29. b4
{[%clk 0:01:00.8]} 29... axb4 {[%clk 0:02:05.4]} 30. axb4 {[%clk 0:01:01.7]}
30... Re5 {[%clk 0:02:00.7]} 31. Rxe5 {[%clk 0:00:57.8]} 31... dxe5 {[%clk
0:02:00.3]} 32. Rd8+ {[%clk 0:00:57.6]} 32... Ke7 {[%clk 0:02:00.1]} 33. Rh8
{[%clk 0:00:55.4]} 33... Rd6 {[%clk 0:01:58]} 34. Kc2 {[%clk 0:00:45]} 34... Kf6
{[%clk 0:01:57.5]} 35. Rxh7 {[%clk 0:00:42.8]} 35... Rd8 {[%clk 0:01:57.5]} 36.
Bxb5 {[%clk 0:00:38.5]} 36... Bd5 {[%clk 0:01:57.1]} 37. Bd3 {[%clk 0:00:27.3]}
37... Bxf3 {[%clk 0:01:56]} 38. g5+ {[%clk 0:00:27.6]} 38... Kxg5 {[%clk
0:01:54.1]} 39. Rxf7 {[%clk 0:00:28.1]} 39... e4 {[%clk 0:01:50.3]} 40. Bf1
{[%clk 0:00:23.5]} 40... Kxh6 {[%clk 0:01:49.7]} 41. c4 {[%clk 0:00:21.4]} 41...
g5 {[%clk 0:01:43.1]} 42. c5 {[%clk 0:00:17.6]} 42... g4 {[%clk 0:01:42.5]} 43.
b5 {[%clk 0:00:16.8]} 43... e3 {[%clk 0:01:42.5]} 44. c6 {[%clk 0:00:15.6]}
44... Rd2+ {[%clk 0:01:41.9]} 45. Kc3 {[%clk 0:00:15.3]} 45... Rf2 {[%clk
0:01:41.2]} 46. c7 {[%clk 0:00:14]} 46... Rxf1 {[%clk 0:01:37.8]} 47. Kd3 {[%clk
0:00:13.9]} 47... Rc1 {[%clk 0:01:36.1]} 48. Kxe3 {[%clk 0:00:13.1]} 48... Kg6
{[%clk 0:01:35]} 49. Rd7 {[%clk 0:00:08.2]} 49... Bb7 {[%clk 0:01:30.8]} 50. b6
{[%clk 0:00:07.2]} 50... Kf5 {[%clk 0:01:28.9]} 51. Rg7 {[%clk 0:00:04.2]} 51...
Rc3+ {[%clk 0:01:26.9]} 52. Kd4 {[%clk 0:00:04]} 52... Rc6 {[%clk 0:01:25.5]}
53. c8=Q+ {[%clk 0:00:01.3]} 53... Bxc8 {[%clk 0:01:22.8]} 0-1

[Event "Late-Titled-Tuesday-Blitz-April-02-2024"]
[Site "Chess.com"]
[Date "2024.04.02"]
[Round "8"]
[White "simaopdias"]
[Black "Quattroporte300"]
[Result "0-1"]
[WhiteElo "2310"]
[BlackElo "2483"]
[TimeControl "180+1"]
[EndTime "15:26:13 PDT"]
[Termination "Quattroporte300 won on time"]

1. e4 {[%clk 0:02:55.8]} 1... c5 {[%clk 0:02:59.9]} 2. Nf3 {[%clk 0:02:55.8]}
2... a6 {[%clk 0:03:00]} 3. d4 {[%clk 0:02:56.7]} 3... cxd4 {[%clk 0:03:00]} 4.
Nxd4 {[%clk 0:02:57.6]} 4... Nf6 {[%clk 0:03:00.3]} 5. Bd3 {[%clk 0:02:56.9]}
5... e5 {[%clk 0:02:59.9]} 6. Ne2 {[%clk 0:02:55.8]} 6... Nc6 {[%clk 0:02:59.7]}
7. c4 {[%clk 0:02:55.2]} 7... Bc5 {[%clk 0:02:40.5]} 8. Nbc3 {[%clk 0:02:54.1]}
8... h6 {[%clk 0:02:39.6]} 9. O-O {[%clk 0:02:52.1]} 9... O-O {[%clk 0:02:39.9]}
10. h3 {[%clk 0:02:44.2]} 10... d6 {[%clk 0:02:39.7]} 11. a3 {[%clk 0:02:37]}
11... Be6 {[%clk 0:02:35.9]} 12. b4 {[%clk 0:02:36.6]} 12... Ba7 {[%clk
0:02:36]} 13. Bb2 {[%clk 0:02:37.1]} 13... Nh5 {[%clk 0:02:33.5]} 14. Rc1 {[%clk
0:02:31.9]} 14... Qh4 {[%clk 0:02:33.4]} 15. Kh2 {[%clk 0:02:10.7]} 15... Kh8
{[%clk 0:02:27.3]} 16. Qe1 {[%clk 0:02:02.9]} 16... f5 {[%clk 0:02:25.2]} 17. g3
{[%clk 0:01:57.9]} 17... Qf6 {[%clk 0:02:05.9]} 18. f4 {[%clk 0:01:52.5]} 18...
Nd4 {[%clk 0:01:55.5]} 19. Nd5 {[%clk 0:01:17.2]} 19... Bxd5 {[%clk 0:01:54.3]}
20. cxd5 {[%clk 0:01:13.4]} 20... fxe4 {[%clk 0:01:49]} 21. Bxe4 {[%clk
0:01:02.2]} 21... Rae8 {[%clk 0:01:48.7]} 22. f5 {[%clk 0:00:47.5]} 22... Nxe2
{[%clk 0:01:35.9]} 23. Qxe2 {[%clk 0:00:46.8]} 23... Qg5 {[%clk 0:01:36.5]} 24.
g4 {[%clk 0:00:25.7]} 24... Nf4 {[%clk 0:01:27.8]} 25. Qf3 {[%clk 0:00:20.8]}
25... Rc8 {[%clk 0:01:06.5]} 26. Bc3 {[%clk 0:00:17.7]} 26... Ng6 {[%clk
0:00:51.7]} 27. Rc2 {[%clk 0:00:10.3]} 27... Nh4 {[%clk 0:00:50.3]} 28. Qg3
{[%clk 0:00:08.4]} 28... Be3 {[%clk 0:00:47.1]} 29. Bb2 {[%clk 0:00:05.2]} 29...
Rxc2+ {[%clk 0:00:41.8]} 30. Bxc2 {[%clk 0:00:06.1]} 30... Bf4 {[%clk
0:00:42.4]} 31. Rxf4 {[%clk 0:00:06.2]} 31... Qxf4 {[%clk 0:00:36.9]} 32. Qxf4
{[%clk 0:00:06]} 32... exf4 {[%clk 0:00:37.7]} 33. Bd3 {[%clk 0:00:03.8]} 33...
Nf3+ {[%clk 0:00:36.8]} 34. Kg2 {[%clk 0:00:02.9]} 34... Ne1+ {[%clk 0:00:36.9]}
0-1

[Event "Late-Titled-Tuesday-Blitz-April-02-2024"]
[Site "Chess.com"]
[Date "2024.04.02"]
[Round "8"]
[White "trriinu"]
[Black "FREZZY23"]
[Result "0-1"]
[WhiteElo "2283"]
[BlackElo "2429"]
[TimeControl "180+1"]
[EndTime "15:26:24 PDT"]
[Termination "FREZZY23 won on time"]

1. e4 {[%clk 0:03:00]} 1... c5 {[%clk 0:02:59.2]} 2. Nf3 {[%clk 0:02:58.3]} 2...
d6 {[%clk 0:02:59.4]} 3. Bb5+ {[%clk 0:02:55.6]} 3... Nd7 {[%clk 0:02:58.5]} 4.
O-O {[%clk 0:02:54.8]} 4... a6 {[%clk 0:02:46.2]} 5. Be2 {[%clk 0:02:50.8]} 5...
Ngf6 {[%clk 0:02:45.8]} 6. d3 {[%clk 0:02:51]} 6... g6 {[%clk 0:02:38.3]} 7. Nc3
{[%clk 0:02:46.1]} 7... Bg7 {[%clk 0:02:37.9]} 8. a4 {[%clk 0:02:38.6]} 8... O-O
{[%clk 0:02:36.7]} 9. a5 {[%clk 0:02:33.6]} 9... e5 {[%clk 0:02:34.3]} 10. h3
{[%clk 0:02:16.8]} 10... Rb8 {[%clk 0:02:32.7]} 11. Bg5 {[%clk 0:02:15.4]} 11...
Qc7 {[%clk 0:02:30.6]} 12. Qd2 {[%clk 0:02:14.1]} 12... b5 {[%clk 0:02:28.4]}
13. axb6 {[%clk 0:02:10.6]} 13... Nxb6 {[%clk 0:02:27.7]} 14. b3 {[%clk
0:02:10.9]} 14... Rd8 {[%clk 0:02:20.8]} 15. Nh2 {[%clk 0:01:19.4]} 15... d5
{[%clk 0:02:17.8]} 16. exd5 {[%clk 0:01:18.2]} 16... Nbxd5 {[%clk 0:02:17.5]}
17. f4 {[%clk 0:01:16.2]} 17... exf4 {[%clk 0:02:13.9]} 18. Nxd5 {[%clk
0:01:05.1]} 18... Nxd5 {[%clk 0:02:13.9]} 19. Bxd8 {[%clk 0:01:01.7]} 19... Qxd8
{[%clk 0:02:14.8]} 20. Ra4 {[%clk 0:00:57.4]} 20... Bc3 {[%clk 0:02:10.3]} 21.
Qc1 {[%clk 0:00:51.8]} 21... Bd4+ {[%clk 0:02:04.6]} 22. Kh1 {[%clk 0:00:44.4]}
22... Bb7 {[%clk 0:01:52.2]} 23. Nf3 {[%clk 0:00:27.1]} 23... Be3 {[%clk
0:01:46]} 24. Qa3 {[%clk 0:00:24.3]} 24... Nb4 {[%clk 0:01:39.7]} 25. Bd1 {[%clk
0:00:14.5]} 25... Qc8 {[%clk 0:01:22]} 26. Qb2 {[%clk 0:00:10.1]} 26... Bc6
{[%clk 0:01:06.3]} 27. Ra1 {[%clk 0:00:06.9]} 27... Qc7 {[%clk 0:01:05.3]} 28.
Qf6 {[%clk 0:00:06.3]} 28... Re8 {[%clk 0:01:00.5]} 29. Qh4 {[%clk 0:00:05.5]}
29... a5 {[%clk 0:00:56.5]} 30. Ng5 {[%clk 0:00:05.7]} 30... f6 {[%clk 0:00:53]}
31. Nf3 {[%clk 0:00:06]} 31... Kg7 {[%clk 0:00:42.4]} 32. Kh2 {[%clk 0:00:03]}
32... g5 {[%clk 0:00:40.3]} 33. Qh5 {[%clk 0:00:03.1]} 33... Re7 {[%clk
0:00:32.5]} 34. Kh1 {[%clk 0:00:03.4]} 34... Be8 {[%clk 0:00:32.3]} 35. Qg4
{[%clk 0:00:03.3]} 35... h5 {[%clk 0:00:31.7]} 36. Qf5 {[%clk 0:00:01.8]} 36...
Bg6 {[%clk 0:00:32.1]} 0-1